bitfinex-derivatives/quotes_BNBF0:USTF0_20250715
["timestamp","ask_amount","ask_price","bid_price","bid_amount"]
[1752555489520,0.98547022,682.5,682.02,0.96922061]
[1752555490019,0.98547022,682.49,682.02,0.96922061]
[1752555492520,0.98547022,682.48,682.03,0.96922061]
[1752555493426,0.98547022,682.49,682.02,0.96922061]
[1752555497630,0.98547022,682.48,682.02,0.96922061]
[1752555498030,0.98547022,682.49,682.02,0.96922061]
[1752555499031,0.98547022,682.48,682.02,0.96922061]
[1752555500332,0.98547022,682.49,682.02,0.96922061]
[1752555501333,0.98547022,682.5,682.01,0.96922061]
[1752555501735,0.98547022,682.52,682.02,0.96922061]
[1752555501933,0.98547022,682.53,682.04,0.96922061]
[1752555503238,0.98547022,682.52,682.05,0.96922061]
[1752555504538,0.98547022,682.54,682.07,0.96922061]
[1752555507348,0.98547022,682.54,682.06,0.96922061]
[1752555508041,0.98547022,682.54,682.07,0.96922061]
[1752555508245,0.98547022,682.55,682.06,0.96922061]
[1752555510345,0.98547022,682.54,682.07,0.96922061]
[1752555511048,0.98547022,682.53,682.07,0.96922061]
[1752555511747,0.98547022,682.53,682.08,0.96922061]
[1752555511944,0.98547022,682.52,682.08,0.96922061]
[1752555513348,0.98547022,682.54,682.07,0.96922061]
[1752555514144,0.98547022,682.54,681.93,1.30783974]
[1752555514145,0.98547022,682.6,682.03,0.96922061]
[1752555514350,0.98547022,682.57,682.01,0.96922061]
[1752555514646,0.98547022,682.58,682.01,0.96922061]
[1752555514845,0.98547022,682.57,682.0,0.96922061]
[1752555515750,0.98547022,682.58,682.01,0.96922061]
[1752555516848,0.98547022,682.56,681.99,0.96922061]
[1752555518752,0.98547022,682.56,682.0,0.96922061]
[1752555518953,0.98547022,682.57,682.01,0.96922061]
[1752555521358,0.98547022,682.58,682.01,0.96922061]
[1752555522151,0.98547022,682.59,682.0,0.96922061]
[1752555523257,0.98547022,682.58,682.0,0.96922061]
[1752555523954,0.98547022,682.56,682.02,0.96922061]
[1752555526256,0.98547022,682.56,682.03,0.96922061]
[1752555530554,0.98547022,682.55,682.03,0.96922061]
[1752555531258,0.98547022,682.54,682.04,0.96922061]
[1752555532155,0.98547022,682.52,682.05,0.96922061]
[1752555534656,0.98547022,682.54,682.04,0.96922061]
[1752555536761,0.98547022,682.53,682.04,0.96922061]
[1752555537063,0.98547022,682.54,682.05,0.96922061]
[1752555543667,0.98547022,682.53,682.05,0.96922061]
[1752555543864,0.98547022,682.54,682.05,0.96922061]
[1752555544569,0.98547022,682.52,682.06,0.96922061]
[1752555546669,0.98547022,682.52,682.07,0.96922061]
[1752555547768,0.98547022,682.51,682.07,0.96922061]
[1752555549969,0.98547022,682.5,682.07,0.96922061]
[1752555550772,0.98547022,682.5,682.08,0.96922061]
[1752555552172,0.98547022,682.49,682.08,0.96922061]
[1752555553674,0.98547022,682.48,682.08,0.96922061]
[1752555554372,0.98547022,682.5,682.11,0.96922061]
[1752555556278,0.98547022,682.53,682.09,0.96922061]
[1752555561378,0.98547022,682.53,682.1,0.96922061]
[1752555561583,0.98547022,682.54,682.09,0.96922061]
[1752555564383,0.98547022,682.51,682.07,0.96922061]
[1752555565680,0.98547022,682.53,682.06,0.96922061]
[1752555566282,0.98547022,682.52,682.06,0.96922061]
[1752555569785,0.98547022,682.52,682.07,0.96922061]
[1752555570589,0.98547022,682.51,682.06,0.96922061]
[1752555570890,0.98547022,682.55,682.04,0.96922061]
[1752555571089,0.98547022,682.57,682.02,0.96922061]
[1752555571290,0.98547022,682.56,682.01,0.96922061]
[1752555571489,0.98547022,682.56,682.02,0.96922061]
[1752555574390,0.98547022,682.57,682.02,0.96922061]
[1752555575194,0.98547022,682.56,682.02,0.96922061]
[1752555580798,0.98547022,682.54,682.03,0.96922061]
[1752555580999,0.98547022,682.5,682.06,0.96922061]
[1752555585201,0.98547022,682.49,682.06,0.96922061]
[1752555586001,0.98547022,682.55,682.03,0.96922061]
[1752555586200,0.98547022,682.54,682.03,0.96922061]
[1752555589906,0.98547022,682.54,682.04,0.96922061]
[1752555590903,0.98547022,682.53,682.04,0.96922061]
[1752555591104,0.98547022,682.58,682.01,0.96922061]
[1752555591303,0.98547022,682.57,682.0,0.96922061]
[1752555591707,0.98547022,682.56,682.01,0.96922061]
[1752555592007,0.98547022,682.56,681.83,1.30783974]
[1752555592008,0.98547022,682.58,682.0,0.96922061]
[1752555592202,0.98547022,682.58,681.75,0.25495813]
[1752555592203,0.98547022,682.56,682.01,0.96922061]
[1752555592404,0.98547022,682.56,682.0,0.96922061]
[1752555594409,0.98547022,682.56,682.01,0.96922061]
[1752555594609,0.98547022,682.57,682.01,0.96922061]
[1752555595808,0.98547022,682.55,682.02,0.96922061]
[1752555596705,0.98547022,682.53,682.0,0.96922061]
[1752555596903,0.98547022,682.49,681.96,0.96922061]
[1752555597306,0.98547022,682.42,681.89,0.96922061]
[1752555597509,0.98547022,682.42,681.85,0.96922061]
[1752555597706,0.98547022,682.38,681.82,0.96922061]
[1752555598408,0.98547022,682.41,681.8,0.96922061]
[1752555599513,0.98547022,682.42,681.79,0.96922061]
[1752555601410,0.98547022,682.42,681.75,0.25495813]
[1752555601411,0.98547022,682.43,681.78,0.96922061]
[1752555602006,0.98547022,682.36,681.83,0.96922061]
[1752555602208,0.98547022,682.46,681.92,0.96922061]
[1752555602408,0.98547022,682.47,681.92,0.96922061]
[1752555602606,0.98547022,682.46,681.92,0.96922061]
[1752555602910,0.98547022,682.47,681.92,0.96922061]
[1752555603206,0.98547022,682.47,681.91,0.96922061]
[1752555603607,0.98547022,682.48,681.91,0.96922061]
[1752555604107,0.98547022,682.47,681.91,0.96922061]
[1752555604312,0.98547022,682.48,681.91,0.96922061]
[1752555604506,0.98547022,682.48,681.9,0.96922061]
[1752555605210,0.98547022,682.49,681.9,0.96922061]
[1752555606210,0.98547022,682.49,681.89,0.96922061]
[1752555608206,0.98547022,682.5,681.89,0.96922061]
[1752555608409,0.98547022,682.48,681.9,0.96922061]
[1752555609212,0.98547022,682.49,681.89,0.96922061]
[1752555612811,0.98547022,682.49,681.77,1.30783974]
[1752555612812,0.98547022,682.52,681.87,0.96922061]
[1752555613810,0.98547022,682.53,681.86,0.96922061]
[1752555614911,0.98547022,682.63,681.8,0.96922061]
[1752555615213,0.98547022,682.65,681.82,0.96922061]
[1752555615411,0.98547022,682.76,681.93,0.96922061]
[1752555616015,0.98547022,682.77,681.92,0.96922061]
[1752555616215,0.98547022,682.76,681.93,0.96922061]
[1752555616712,0.98547022,682.77,681.93,0.96922061]
[1752555617712,0.98547022,682.66,682.0,0.96922061]
[1752555620116,0.98547022,682.67,681.99,0.96922061]
[1752555620314,0.98547022,682.66,681.99,0.96922061]
[1752555621112,0.98547022,682.66,682.0,0.96922061]
[1752555624418,0.98547022,682.68,681.99,0.96922061]
[1752555624819,0.98547022,682.67,681.99,0.96922061]
[1752555626020,0.98547022,682.66,681.99,0.96922061]
[1752555626716,0.98547022,682.68,681.98,0.96922061]
[1752555627217,0.98547022,682.69,681.98,0.96922061]
[1752555628120,0.98547022,682.7,681.99,0.96922061]
[1752555629518,0.98547022,682.69,682.0,0.96922061]
[1752555630017,0.98547022,682.66,682.02,0.96922061]
[1752555630422,0.98547022,682.65,682.03,0.96922061]
[1752555630622,0.98547022,682.66,682.02,0.96922061]
[1752555630819,0.98547022,682.76,682.02,0.96922061]
[1752555631924,0.98547022,682.7,682.06,0.96922061]
[1752555632823,0.98547022,682.72,682.07,0.96922061]
[1752555633325,0.98547022,682.72,682.08,0.96922061]
[1752555633520,0.98547022,682.73,682.08,0.96922061]
[1752555633923,0.98547022,682.75,682.07,0.96922061]
[1752555634324,0.98547022,682.76,682.08,0.96922061]
[1752555634725,0.98547022,682.78,682.1,0.96922061]
[1752555634926,0.25491144,682.94,682.1,0.96922061]
[1752555634927,0.98547022,682.79,682.1,0.96922061]
[1752555635627,0.98547022,682.8,682.09,0.96922061]
[1752555637030,0.98547022,682.82,682.08,0.96922061]
[1752555637326,3.2920404,683.72,681.92,1.30783974]
[1752555637327,0.98547022,682.84,682.09,0.96922061]
[1752555637530,0.98547022,682.88,682.13,0.96922061]
[1752555638230,0.98547022,682.88,682.12,0.96922061]
[1752555638432,0.98547022,682.87,682.13,0.96922061]
[1752555639132,0.98465607,682.87,682.13,0.97579507]
[1752555640330,0.98465607,682.88,682.12,0.97579507]
[1752555641931,0.98465607,682.87,682.12,0.97579507]
[1752555642135,0.98465607,682.88,682.12,0.97579507]
[1752555642933,0.98465607,682.87,682.12,0.97579507]
[1752555643639,0.98465607,682.88,682.11,0.97579507]
[1752555643939,0.98465607,682.93,682.08,0.97579507]
[1752555644737,0.98465607,682.98,682.12,0.97579507]
[1752555645036,0.98465607,682.98,681.75,0.25495813]
[1752555645037,0.98465607,683.04,682.19,0.97579507]
[1752555645340,0.98465607,683.05,682.17,0.97579507]
[1752555645540,0.98465607,683.07,682.16,0.97579507]
[1752555645737,1.10680425,683.06,682.16,0.97579507]
[1752555646035,1.10680425,683.06,682.17,0.97579507]
[1752555646237,0.98465607,683.08,682.16,0.97579507]
[1752555646437,1.10673909,683.07,682.15,0.97579507]
[1752555646639,2.09139516,683.07,682.16,0.97579507]
[1752555646841,2.09139516,683.06,682.17,0.97579507]
[1752555647040,0.98465607,683.06,682.17,0.97579507]
[1752555647341,0.98465607,683.07,682.15,0.97579507]
[1752555647641,0.98465607,683.03,682.18,0.97579507]
[1752555648346,0.98465607,683.03,682.17,0.97579507]
[1752555648641,1.10651205,683.02,682.17,0.97579507]
[1752555648843,0.98465607,683.0,682.19,0.97579507]
[1752555649545,0.98465607,683.01,682.18,0.97579507]
[1752555651145,0.98465607,683.01,682.17,0.97579507]
[1752555652445,0.98465607,683.01,682.16,0.97579507]
[1752555653143,0.98465607,683.02,682.16,0.97579507]
[1752555653540,0.98465607,683.01,682.16,0.97579507]
[1752555654346,0.98465607,683.01,682.02,1.30783974]
[1752555654347,0.98465607,683.02,682.15,0.97579507]
[1752555654841,0.98465607,683.03,682.14,0.97579507]
[1752555656548,0.98465607,683.19,682.03,0.97579507]
[1752555657143,0.98465607,683.19,682.02,0.97579507]
[1752555657846,0.98465607,683.2,682.02,0.97579507]
[1752555658947,0.98465607,683.05,682.12,0.97579507]
[1752555659347,0.98465607,683.04,682.12,0.97579507]
[1752555659546,0.98465607,683.04,682.13,0.97579507]
[1752555660248,0.98465607,683.05,682.12,0.97579507]
[1752555660744,0.98465607,683.06,682.12,0.97579507]
[1752555661351,0.98465607,683.07,682.11,0.97579507]
[1752555664452,0.98465607,683.08,682.1,0.97579507]
[1752555665650,0.98465607,683.09,682.1,0.97579507]
[1752555666051,0.98465607,683.09,682.09,0.97579507]
[1752555666353,0.98465607,683.09,682.1,0.97579507]
[1752555666852,0.98465607,683.06,682.12,0.97579507]
[1752555667653,0.98465607,683.03,682.14,0.97579507]
[1752555667952,0.98465607,683.02,682.14,0.97579507]
[1752555668150,0.98465607,683.02,682.15,0.97579507]
[1752555668354,0.98465607,683.01,682.14,0.97579507]
[1752555668749,0.98465607,682.99,682.12,0.97579507]
[1752555669451,0.98465607,682.98,682.12,0.97579507]
[1752555670055,0.98465607,682.98,682.13,0.97579507]
[1752555670349,0.98465607,682.97,682.13,0.97579507]
[1752555671154,0.98465607,682.97,682.14,0.97579507]
[1752555671354,0.98465607,682.96,682.15,0.97579507]
[1752555672154,0.98465607,682.96,682.16,0.97579507]
[1752555673156,0.98465607,682.95,682.17,0.97579507]
[1752555674253,0.98465607,682.94,682.18,0.97579507]
[1752555675156,0.98465607,682.94,682.19,0.97579507]
[1752555676154,0.98465607,682.94,682.2,0.97579507]
[1752555677256,0.98465607,682.93,682.2,0.97579507]
[1752555677958,0.98465607,682.94,682.2,0.97579507]
[1752555678357,0.98465607,682.92,682.21,0.97579507]
[1752555679161,0.98465607,682.92,682.22,0.97579507]
[1752555679958,0.98465607,682.91,682.22,0.97579507]
[1752555680358,0.98465607,682.91,682.23,0.97579507]
[1752555680864,0.98465607,682.92,682.22,0.97579507]
[1752555681263,0.98465607,682.92,682.23,0.97579507]
[1752555681862,0.98465607,682.91,682.23,0.97579507]
[1752555682062,0.98465607,682.92,682.23,0.97579507]
[1752555682259,0.98465607,682.91,682.23,0.97579507]
[1752555683165,0.98465607,682.91,682.24,0.97579507]
[1752555684160,0.98465607,682.9,682.25,0.97579507]
[1752555684362,0.98465607,682.91,682.24,0.97579507]
[1752555685163,0.98465607,682.91,682.25,0.97579507]
[1752555685662,0.98465607,682.93,682.23,0.97579507]
[1752555686268,0.98465607,682.97,682.21,0.97579507]
[1752555686764,0.98465607,682.96,682.21,0.97579507]
[1752555687166,0.98465607,682.96,682.22,0.97579507]
[1752555687868,0.98465607,682.95,682.22,0.97579507]
[1752555688063,0.98465607,682.96,682.22,0.97579507]
[1752555688265,0.98465607,682.95,682.23,0.97579507]
[1752555689169,0.98465607,682.94,682.23,0.97579507]
[1752555690169,0.98465607,682.94,682.25,0.97579507]
[1752555691165,0.98465607,682.94,682.24,0.97579507]
[1752555691363,0.98465607,682.94,682.25,0.97579507]
[1752555692267,0.98465607,682.93,682.26,0.97579507]
[1752555693071,0.98465607,682.93,682.25,0.97579507]
[1752555693269,1.31681616,683.1,682.09,1.30783974]
[1752555693270,0.98465607,682.92,682.26,0.97579507]
[1752555693771,0.25484237,683.21,682.23,0.97579507]
[1752555693772,0.98465607,682.97,682.23,0.97579507]
[1752555694068,0.98465607,682.96,682.24,0.97579507]
[1752555695171,0.98465607,682.95,682.25,0.97579507]
[1752555695768,0.98465607,682.97,682.26,0.97579507]
[1752555695970,0.98465607,683.02,682.32,0.97579507]
[1752555697170,0.98465607,683.01,682.33,0.97579507]
[1752555697369,0.98465607,682.94,682.36,0.97579507]
[1752555697974,0.98465607,682.93,682.37,0.97579507]
[1752555698672,0.98465607,682.9,682.35,0.97579507]
[1752555699376,0.98465607,682.89,682.36,0.97579507]
[1752555699570,0.98465607,682.88,682.37,0.97579507]
[1752555699768,0.98465607,682.89,682.36,0.97579507]
[1752555700175,0.98465607,682.86,682.39,0.97579507]
[1752555700471,0.98465607,682.88,682.37,0.97579507]
[1752555700770,0.98465607,682.81,682.3,0.97579507]
[1752555703171,0.98465607,682.8,682.31,0.97579507]
[1752555703872,0.98465607,682.82,682.3,0.97579507]
[1752555704175,0.98465607,682.81,682.3,0.97579507]
[1752555704880,0.98465607,682.82,682.3,0.97579507]
[1752555705278,0.98465607,682.83,682.29,0.97579507]
[1752555707180,0.98465607,682.84,682.29,0.97579507]
[1752555709779,0.98465607,682.85,682.29,0.97579507]
[1752555710183,0.98465607,682.88,682.26,0.97579507]
[1752555710479,0.98465607,682.87,682.26,0.97579507]
[1752555710686,0.98465607,682.87,682.27,0.97579507]
[1752555712584,0.98465607,682.92,682.21,0.97579507]
[1752555712981,0.98465607,682.91,682.21,0.97579507]
[1752555713182,0.98465607,682.91,682.22,0.97579507]
[1752555713480,0.98465607,682.91,682.21,0.97579507]
[1752555713681,0.98465607,682.83,682.27,0.97579507]
[1752555714680,0.98465607,682.83,682.26,0.97579507]
[1752555715286,0.98465607,682.81,682.28,0.97579507]
[1752555715482,0.98465607,682.84,682.23,0.97579507]
[1752555715886,0.25484237,683.21,682.22,0.97579507]
[1752555715887,0.98465607,682.82,682.22,0.97579507]
[1752555716886,0.98465607,682.87,682.17,0.97579507]
[1752555717082,0.98465607,682.86,682.17,0.97579507]
[1752555717384,0.98465607,682.86,682.16,0.97579507]
[1752555718182,0.98465607,682.88,682.15,0.97579507]
[1752555718486,0.98465607,682.85,682.16,0.97579507]
[1752555719383,0.98465607,682.85,682.15,0.97579507]
[1752555720386,0.98465607,682.84,682.14,0.97579507]
[1752555720986,0.98465607,682.86,682.13,0.97579507]
[1752555721190,0.98465607,682.85,682.13,0.97579507]
[1752555721489,0.98465607,682.8,682.1,0.97579507]
[1752555721792,0.98465607,682.77,682.1,0.97579507]
[1752555722090,0.98465607,682.75,682.09,0.97579507]
[1752555723092,0.98465607,682.74,682.09,0.97579507]
[1752555723391,0.98465607,682.68,682.14,0.97579507]
[1752555724385,0.98465607,682.67,682.14,0.97579507]
[1752555725186,0.98465607,682.68,682.13,0.97579507]
[1752555726394,0.98465607,682.66,682.09,0.97579507]
[1752555726691,0.98465607,682.66,682.03,0.97579507]
[1752555726889,0.98465607,682.62,682.05,0.97579507]
[1752555727290,0.98465607,682.59,682.0,0.25482371]
[1752555727488,0.98465607,682.65,682.0,0.25482371]
[1752555728292,0.98465607,682.66,682.0,0.25482371]
[1752555729189,0.98465607,682.67,682.0,0.25482371]
[1752555730093,0.98465607,682.68,682.0,0.25482371]
[1752555730794,0.98465607,682.69,682.0,0.25482371]
[1752555732094,0.98465607,682.7,682.0,0.25482371]
[1752555732297,0.98465607,682.69,682.0,0.25482371]
[1752555733098,0.98465607,682.7,682.0,0.25482371]
[1752555734500,0.98465607,682.73,682.0,0.25482371]
[1752555734798,0.98465607,682.75,682.0,0.25482371]
[1752555736201,0.98465607,682.76,682.0,0.25482371]
[1752555737100,0.98465607,682.75,682.0,0.25482371]
[1752555737303,1.31681616,682.94,682.0,0.25482371]
[1752555737304,0.98465607,682.73,682.0,0.25482371]
[1752555737800,0.98465607,682.72,682.0,0.25482371]
[1752555738202,0.98465607,682.73,682.0,0.25482371]
[1752555740403,1.31681616,682.91,682.0,0.25482371]
[1752555740604,0.98320476,682.73,682.0,0.25482371]
[1752555741305,0.98320476,682.72,682.0,0.25482371]
[1752555741509,0.98320476,682.68,682.0,0.25482371]
[1752555741807,0.98320476,682.67,682.0,0.25482371]
[1752555742205,0.98320476,682.66,682.0,0.25482371]
[1752555742505,0.98320476,682.65,682.0,0.25482371]
[1752555743308,0.98320476,682.64,682.0,0.25482371]
[1752555743608,0.98320476,682.73,682.0,0.25482371]
[1752555744206,0.98320476,682.74,682.0,0.25482371]
[1752555744413,0.98320476,682.78,682.0,0.25482371]
[1752555744612,0.98320476,682.75,682.0,0.25482371]
[1752555744913,0.98320476,682.76,682.0,0.25482371]
[1752555747314,0.98320476,682.79,682.0,0.25482371]
[1752555747514,0.98320476,682.77,682.0,0.25482371]
[1752555748315,0.98320476,682.78,682.0,0.25482371]
[1752555753216,0.98320476,682.79,682.0,0.25482371]
[1752555753514,0.98320476,682.78,682.0,0.25482371]
[1752555756422,0.98320476,682.77,682.0,0.25482371]
[1752555757323,0.98320476,682.74,682.0,0.25482371]
[1752555758528,0.98320476,682.77,682.0,0.25482371]
[1752555758726,0.98320476,682.78,682.0,0.25482371]
[1752555759527,0.98320476,682.77,682.0,0.25482371]
[1752555760829,0.98320476,682.76,682.0,0.25482371]
[1752555761026,0.98320476,682.77,682.0,0.25482371]
[1752555763230,0.98320476,682.76,682.0,0.25482371]
[1752555763530,0.98320476,682.78,682.0,0.25482371]
[1752555764126,0.98320476,682.77,682.0,0.25482371]
[1752555766532,0.98320476,682.76,682.0,0.25482371]
[1752555768633,0.25484237,683.21,682.0,1.23263908]
[1752555768634,0.98320476,682.72,682.0,1.23263908]
[1752555770329,0.98320476,682.72,682.01,0.97781537]
[1752555770934,0.98320476,682.72,682.0,0.25482371]
[1752555770935,0.98320476,682.7,682.02,0.97781537]
[1752555771130,0.98320476,682.69,682.03,0.97781537]
[1752555771737,0.98320476,682.69,682.04,0.97781537]
[1752555772234,0.98320476,682.68,682.04,0.97781537]
[1752555773337,0.98320476,682.67,682.05,0.97781537]
[1752555775139,0.98320476,682.66,682.06,0.97781537]
[1752555776139,0.98593144,682.66,682.06,0.97827799]
[1752555777137,0.98593144,682.66,682.07,0.97827799]
[1752555777335,0.98593144,682.65,682.07,0.97827799]
[1752555778336,0.98593144,682.64,682.08,0.97827799]
[1752555779439,0.98593144,682.62,682.09,0.97827799]
[1752555779938,0.98593144,682.63,682.09,0.97827799]
[1752555781437,0.98593144,682.62,682.09,0.97827799]
[1752555781637,0.98593144,682.62,682.0,0.25482371]
[1752555781638,0.98593144,682.62,682.1,0.97827799]
[1752555782239,0.98593144,682.61,682.1,0.97827799]
[1752555782737,0.98593144,682.62,682.1,0.97827799]
[1752555782940,0.98593144,682.62,682.09,0.97827799]
[1752555783241,0.98593144,682.62,682.1,0.97827799]
[1752555784240,0.98593144,682.63,682.1,0.97827799]
[1752555786143,0.98593144,682.62,682.1,0.97827799]
[1752555786343,0.98685622,682.62,682.1,0.98009171]
[1752555787040,0.98685622,682.64,682.09,0.98009171]
[1752555787239,0.98685622,682.7,682.09,0.98009171]
[1752555787443,0.98685622,682.73,682.12,0.98009171]
[1752555787641,0.98685622,682.73,682.11,0.98009171]
[1752555788244,0.98685622,682.8,682.16,0.98009171]
[1752555788441,1.31681616,682.97,682.0,0.25482371]
[1752555788442,0.98685622,682.81,682.18,0.98009171]
[1752555788642,0.98685622,682.7,682.07,0.98009171]
[1752555790745,0.98685622,682.8,682.18,0.98009171]
[1752555791242,0.98685622,682.77,682.2,0.98009171]
[1752555791441,0.98685622,682.79,682.21,0.98009171]
[1752555792446,0.98685622,682.8,682.2,0.98009171]
[1752555792746,0.98685622,682.8,682.19,0.98009171]
[1752555793046,0.98685622,682.81,682.19,0.98009171]
[1752555794044,0.98685622,682.82,682.18,0.98009171]
[1752555795650,0.98685622,682.81,682.18,0.98009171]
[1752555796652,0.98685622,682.81,682.0,0.25482371]
[1752555796653,0.98685622,682.83,682.17,0.98009171]
[1752555796847,0.98685622,682.83,682.18,0.98009171]
[1752555797352,0.98685622,682.83,682.17,0.98009171]
[1752555799755,0.98685622,682.84,682.17,0.98009171]
[1752555800453,0.98685622,682.83,682.17,0.98009171]
[1752555802254,0.98685622,682.82,682.18,0.98009171]
[1752555802454,0.98685622,682.81,682.18,0.98009171]
[1752555802854,0.98685622,682.82,682.18,0.98009171]
[1752555803054,0.98685622,682.84,682.17,0.98009171]
[1752555803358,0.98685622,682.83,682.17,0.98009171]
[1752555804155,0.98685622,682.81,682.15,0.98009171]
[1752555805058,0.98685622,682.82,682.14,0.98009171]
[1752555806160,0.98685622,682.83,682.14,0.98009171]
[1752555806364,0.98685622,682.82,682.14,0.98009171]
[1752555808861,0.98685622,682.84,682.16,0.98009171]
[1752555809060,1.97522424,683.17,682.16,0.98009171]
[1752555809061,0.98685622,682.85,682.16,0.98009171]
[1752555809565,1.31681616,683.01,682.16,0.98009171]
[1752555809566,0.98685622,682.84,682.16,0.98009171]
[1752555810468,0.98685622,682.85,682.16,0.98009171]
[1752555811469,0.98685622,682.84,682.16,0.98009171]
[1752555812370,0.98685622,682.85,682.16,0.98009171]
[1752555812869,0.98685622,682.85,682.0,1.56266345]
[1752555812870,0.98685622,682.83,682.17,0.98009171]
[1752555813673,0.98685622,682.83,682.18,0.98009171]
[1752555814370,0.98685622,682.82,682.17,0.98009171]
[1752555814571,0.98685622,682.83,682.18,0.98009171]
[1752555814869,0.98685622,682.81,682.19,0.98009171]
[1752555815967,0.98685622,682.79,682.2,0.98009171]
[1752555817468,0.98685622,682.78,682.2,0.98009171]
[1752555817872,0.98685622,682.8,682.19,0.98009171]
[1752555818073,0.98685622,682.8,682.05,1.30783974]
[1752555818074,0.98685622,682.73,682.12,0.98009171]
[1752555818470,0.98685622,682.75,682.11,0.98009171]
[1752555819174,0.98685622,682.74,682.11,0.98009171]
[1752555819375,0.98685622,682.75,682.11,0.98009171]
[1752555819774,0.98685622,682.72,682.09,0.98009171]
[1752555821470,0.98685622,682.7,682.06,0.98009171]
[1752555822174,0.98685622,682.71,682.06,0.98009171]
[1752555823470,0.98685622,682.72,682.05,0.98009171]
[1752555825171,0.98685622,682.73,682.05,0.98009171]
[1752555825775,0.98685622,682.72,682.05,0.98009171]
[1752555827377,0.98685622,682.72,682.0,0.25482371]
[1752555827378,0.98685622,682.82,682.0,0.25482371]
[1752555827572,0.98685622,682.83,682.0,0.25482371]
[1752555828775,0.98685622,682.82,682.0,0.25482371]
[1752555829280,0.98685622,682.86,682.02,0.98009171]
[1752555831676,0.98685622,682.85,682.0,0.25482371]
[1752555832479,0.98685622,682.86,682.0,0.25482371]
[1752555832678,0.98685622,682.84,682.0,0.25482371]
[1752555834178,0.98685622,682.83,682.0,0.25482371]
[1752555836483,0.98685622,682.84,682.0,0.25482371]
[1752555836783,0.98685622,682.85,682.0,0.25482371]
[1752555837184,0.98685622,682.86,682.0,0.25482371]
[1752555837381,1.31681616,683.12,682.0,0.25482371]
[1752555837585,0.98613771,682.86,682.0,0.25482371]
[1752555840887,0.98613771,682.84,682.0,0.25482371]
[1752555841183,0.25484237,683.21,682.0,0.25482371]
[1752555841184,0.98613771,682.85,682.0,0.25482371]
[1752555841483,0.98613771,682.84,682.0,0.25482371]
[1752555842688,0.98613771,682.83,682.0,0.25482371]
[1752555843288,0.98618682,682.85,682.0,0.25482371]
[1752555843588,0.98618682,682.81,682.03,0.97981965]
[1752555843787,0.98618682,682.78,682.19,0.97981965]
[1752555845184,0.98618682,682.79,682.19,0.97981965]
[1752555845688,0.25488157,683.01,682.2,0.97981965]
[1752555845689,0.98618682,682.8,682.2,0.97981965]
[1752555846087,0.98618682,682.79,682.19,0.97981965]
[1752555846588,0.98618682,682.78,682.19,0.97981965]
[1752555846789,0.98618682,682.81,682.17,0.97981965]
[1752555847092,0.98618682,682.82,682.17,0.97981965]
[1752555847887,0.98618682,682.81,682.16,0.97981965]
[1752555848089,0.98618682,682.8,682.15,0.97981965]
[1752555848291,0.98618682,682.81,682.15,0.97981965]
[1752555848493,0.98618682,682.77,682.11,0.97981965]
[1752555850591,0.98618682,682.78,682.11,0.97981965]
[1752555851294,0.98618682,682.83,682.1,0.25490491]
[1752555851790,0.98618682,682.88,682.12,0.97981965]
[1752555853090,0.98618682,682.88,682.1,0.25490491]
[1752555853091,0.98618682,682.88,682.13,0.97981965]
[1752555854094,0.98618682,682.88,682.12,0.97981965]
[1752555854296,0.98618682,682.88,682.13,0.97981965]
[1752555854794,0.98618682,682.87,682.13,0.97981965]
[1752555854995,0.98618682,682.89,682.12,0.97981965]
[1752555855194,0.98618682,682.92,682.15,0.97981965]
[1752555856602,0.98618682,682.93,682.16,0.97981965]
[1752555857101,0.98618682,682.92,682.16,0.97981965]
[1752555858000,0.98618682,682.93,682.16,0.97981965]
[1752555858202,0.98618682,682.92,682.16,0.97981965]
[1752555859104,0.98618682,682.86,682.2,0.97981965]
[1752555859501,0.25488157,683.01,682.1,0.25490491]
[1752555859796,0.98605748,682.86,682.2,0.97937002]
[1752555860399,0.98605748,682.87,682.2,0.97937002]
[1752555861301,0.98605748,682.87,682.19,0.97937002]
[1752555861699,0.98605748,682.87,682.2,0.97937002]
[1752555862203,0.98605748,682.87,682.1,0.25490491]
[1752555862204,0.98605748,682.87,682.19,0.97937002]
[1752555864905,0.98605748,682.84,682.21,0.97937002]
[1752555865406,0.98605748,682.86,682.24,0.97937002]
[1752555865606,0.9858542,682.86,682.24,0.97911174]
[1752555866308,0.9858542,682.86,682.23,0.97911174]
[1752555867613,0.9858542,682.88,682.25,0.97911174]
[1752555867810,0.9858542,682.86,682.26,0.97911174]
[1752555868512,0.9858542,682.87,682.26,0.97911174]
[1752555869312,0.9858542,682.87,682.25,0.97911174]
[1752555869713,0.9858542,682.85,682.26,0.97911174]
[1752555870411,0.9858542,682.91,682.22,0.97911174]
[1752555874518,0.9858542,682.92,682.22,0.97911174]
[1752555874912,0.9858542,682.95,682.19,0.97911174]
[1752555875218,0.9858542,682.98,682.21,0.97911174]
[1752555877318,0.9858542,682.99,682.21,0.97911174]
[1752555879422,0.9858542,682.99,682.2,0.97911174]
[1752555879619,0.9858542,683.0,682.2,0.97911174]
[1752555880320,0.9858542,682.98,682.21,0.97911174]
[1752555881326,0.9858542,682.99,682.21,0.97911174]
[1752555883122,0.9858542,682.98,682.21,0.97911174]
[1752555883829,0.98491852,682.98,682.21,0.97852169]
[1752555884623,0.98491852,682.97,682.21,0.97852169]